Cogmind - Beta 11.1 --- EXPLORER MODE // 2022.08.13 @ 21:49:24 Player: BillyNate Result: Destroyed by Cetus Guard with Advanced Variable Charge Gun Performance ------------- Evolutions (5) 2500 Regions Visited (12) 2400 Robots Destroyed (129) 645 Value Destroyed (5645) 5645 Prototype IDs (6) 120 Alien Tech Used (0) 0 Bonus (911) 911 TOTAL SCORE: 12221 Bonus ------- Pacifist 200 High Alert Combat Kills 211 Entered DSFs 500 Cogmind --------- Core Integrity 0/1000 Matter 396/400 Energy 150/150 System Corruption 6% Temperature Cool (18) Movement Walking (120) Location -5/Cetus Parts ------- > --- POWER (2) -------- Micro Fission Core > --- PROPULSION (8) --- Flexi-carbon Leg Enhanced Flexi-carbon Leg Enhanced Flexi-carbon Leg > --- UTILITY (5) ------ Advanced Heat Sink Medium Matter Pod Improved Melee Analysis Suite Improved Target Analyzer > --- WEAPON (3) ------- Chainsword Chainsword > --- INVENTORY (5) ---- Gatling Laser Smartbomb Launcher Peak State ------------ > --- POWER ------------ Light Angular Momentum Engine Reinforced Fission Core > --- PROPULSION ------- Carbon-fiber Leg Carbon-fiber Leg Improved Titanium Leg Flexi-carbon Leg Flexi-carbon Leg Armored Leg Improved VSS Leg Centrium Leg > --- UTILITY ---------- Advanced Heat Sink Huge Storage Unit Improved Core Shielding Improved Medium Armor Plating Layered Medium Armor Plating > --- WEAPON ----------- KE Penetrator KE Penetrator Makeshift Sword > --- INVENTORY -------- Carbon-fiber Leg Carbon-fiber Leg Flexi-carbon Leg Enhanced Flexi-carbon Leg Advanced Cooling System Medium Storage Unit Medium Matter Pod Targeting Computer Improved Launcher Guidance Computer Hardened Heavy Armor Plating Improved Medium Armor Plating Authchip [R/Combat] Authchip [Device] Authchip [Storage] Authchip [Processor] Heavy Assault Rifle KE Penetrator KE Penetrator KE Penetrator Smartbomb Launcher Smartbomb Launcher Power Sword [Rating: 97] Favorites ----------- Power Micro Fission Core Engine Hybrid Deuterium Engine Power Core Micro Fission Core Propulsion Carbon-fiber Leg Treads Advanced Heavy Siege Treads Leg Carbon-fiber Leg Utility Huge Storage Unit Device Advanced Heat Sink Storage Huge Storage Unit Processor Targeting Computer Hackware Advanced Hacking Suite Protection Light Armor Plating Weapon KE Penetrator Energy Gun Gatling Laser Ballistic Gun KE Penetrator Ballistic Cannon Advanced Assault Cannon Launcher Smartbomb Launcher Slashing Weapon Makeshift Sword Build | -11 -10 -9 -9 -8 -7 -6 -6 -5 -5 -5 -5 -5 ------- Run | Scr Mat Mat Min Mat Fac Fac DSF Fac Was Fac Ext Cet Slots Evolved 11 | . 1 2 . 2 2 2 . 2 . . . . Power 1 | . . . . . . . . 1 . . . . Propulsion 6 | . . 2 . 1 1 2 . . . . . . Utility 3 | . 1 . . 1 1 . . . . . . . Weapon 1 | . . . . . . . . 1 . . . . Parts Attached 113 | 7 1 6 1 10 6 3 4 52 2 17 1 3 Power 12 | 1 . . . 2 . . 1 5 . 2 . 1 Engine 6 | 1 . . . 2 . . . 2 . 1 . . Core 6 | . . . . . . . 1 3 . 1 . 1 Reactor . | . . . . . . . . . . . . . Propulsion 44 | 2 . 3 . 3 3 2 1 23 1 5 1 . Treads 1 | . . . . . . . . . 1 . . . Leg 43 | 2 . 3 . 3 3 2 1 23 . 5 1 . Wheel . | . . . . . . . . . . . . . Hover . | . . . . . . . . . . . . . Flight . | . . . . . . . . . . . . . Utility 34 | 2 1 1 . 5 2 1 1 13 . 7 . 1 Device 6 | . . . . 1 . . . 2 . 3 . . Storage 4 | 1 . . . 1 1 . . . . . . 1 Processor 7 | . . . . 2 1 . . 2 . 2 . . Hackware 1 | . . . . . . . . 1 . . . . Protection 16 | 1 1 1 . 1 . 1 1 8 . 2 . . Artifact . | . . . . . . . . . . . . . Weapon 23 | 2 . 2 1 . 1 . 1 11 1 3 . 1 Energy Gun 2 | 1 . . . . . . . . . 1 . . Energy Cannon . | . . . . . . . . . . . . . Ballistic Gun 11 | 1 . 2 1 . . . 1 5 . 1 . . Ballistic Cannon 1 | . . . . . . . . 1 . . . . Launcher 5 | . . . . . 1 . . 4 . . . . Special Weapon . | . . . . . . . . . . . . . Impact Weapon . | . . . . . . . . . . . . . Slashing Weapon 4 | . . . . . . . . 1 1 1 . 1 Piercing Weapon . | . . . . . . . . . . . . . Special Melee Weapon . | . . . . . . . . . . . . . Unidentified Prototypes 2 | . . 1 . . . . . . . 1 . . Parts Lost 54 | . . . . 1 2 . 2 33 9 . 5 2 Power 6 | . . . . . . . . 3 1 . 2 . Propulsion 27 | . . . . . . . 1 19 4 . 2 1 Utility 14 | . . . . 1 1 . 1 7 3 . 1 . Weapon 7 | . . . . . 1 . . 4 1 . . 1 Highest Loss Streak 9 | . . . . 1 2 . 1 7 9 . 3 2 To Critical Strikes 2 | . . . . . . . . 1 1 . . . Average Slot Usage (%) 81 | . 90 86 100 99 97 93 92 83 42 54 71 63 Engine 4 | . 12 10 10 8 7 6 3 1 2 4 2 . Core 4 | . . . . . . . 2 8 2 2 5 5 Leg 33 | . 25 26 40 41 42 50 50 38 17 13 26 20 Device 2 | . . . . 2 . . . 2 2 3 5 5 Storage 5 | . 12 10 10 8 7 6 6 5 2 . . 5 Processor 5 | . . . . 8 12 6 6 4 2 6 11 11 Protection 9 | . 15 20 20 13 12 12 11 7 4 6 2 . Energy Gun 1 | . 12 4 . . . . . . . 4 5 3 Ballistic Gun 7 | . 12 15 20 16 12 6 9 4 4 3 5 4 Launcher 1 | . . . . . 1 6 2 2 . . . . Slashing Weapon 2 | . . . . . . . . 3 3 4 5 7 Naked Turns 34 | . . . . . . . . . 34 . . . Heaviest Build 173 | 21 22 24 25 32 99 114 115 173 132 54 54 20 Greatest Support 151 | 20 20 43 43 61 89 111 121 151 151 104 104 91 Greatest Overweight (x) 6 | 3 1 1 . . 1 1 1 3 6 1 . . Average Overweight (x) . | . 1 . . . 1 1 . . . . . . Largest Inventory Capacity 25 | 10 10 10 10 10 25 25 25 25 25 5 5 5 Average Capacity 17 | 9 10 10 10 10 24 25 25 25 14 5 5 5 Most Carried 25 | 7 8 10 10 10 15 13 25 25 24 5 5 4 Average Carried 12 | 4 7 8 9 9 14 10 15 18 13 4 5 3 Final Capacity 25 | 10 10 10 10 10 25 25 25 25 5 5 5 5 Final Carried 25 | 7 8 10 10 9 14 10 25 24 5 5 5 3 Class Distribution -------------------- 65% | Scavenger-Mutant 34% | Hacker-Mutant Dominant Class ---------------- Hacker-Mutant | -10/Materials Hacker-Mutant | -9/Materials Hacker-Mutant | -9/Mines Scavenger-Mutant | -8/Materials Scavenger-Mutant | -7/Factory Scavenger-Mutant | -6/Factory Scavenger-Mutant | -6/DSF Scavenger-Mutant | -5/Factory Scavenger-Mutant | -5/Waste Scavenger-Mutant | -5/Factory Scavenger-Mutant | -5/Extension Scavenger-Mutant | -5/Cetus Resources | -11 -10 -9 -9 -8 -7 -6 -6 -5 -5 -5 -5 -5 ----------- Run | Scr Mat Mat Min Mat Fac Fac DSF Fac Was Fac Ext Cet Matter Collected 4187 | 201 . 358 62 373 52 . 349 2280 64 376 11 61 Remotely . | . . . . . . . . . . . . . Salvage Created 5635 | . . 649 117 648 107 . 136 3098 . 819 . 61 Parts 274 | . . 42 2 40 4 . 5 139 . 38 . 4 Haulers Intercepted . | . . . . . . . . . . . . . Recyclers Shooed 5 | . . 1 1 . . . . 2 . 1 . . Parts Field Recycled . | . . . . . . . . . . . . . Retrieved Matter . | . . . . . . . . . . . . . Parts Self-Destructed . | . . . . . . . . . . . . . Prevented . | . . . . . . . . . . . . . Kills | -11 -10 -9 -9 -8 -7 -6 -6 -5 -5 -5 -5 -5 ------- Run | Scr Mat Mat Min Mat Fac Fac DSF Fac Was Fac Ext Cet Combat Hostiles Destroyed 112 | . . 13 . 13 2 . 4 67 . 12 . 1 Melee 6 | . . . . . . . . 5 . . . 1 Guns 61 | . . 13 . 13 1 . 3 20 . 11 . . Cannons 8 | . . . . . . . . 8 . . . . AOE 34 | . . . . . 1 . 1 32 . . . . Classes Destroyed 16 | . . 8 1 3 . . 1 3 . . . . Worker 17 | . . 1 . 1 . . . 11 . 4 . . Builder 3 | . . . . 1 . . . 2 . . . . Tunneler 1 | . . . 1 . . . . . . . . . Recycler 3 | . . 1 1 . . . . 1 . . . . Mechanic 1 | . . . . . . . . 1 . . . . Operator 2 | . . . . 1 . . . . . 1 . . Watcher 4 | . . 1 . . 1 . . 1 . 1 . . Swarmer 9 | . . 3 . 2 . . . 3 . 1 . . Grunt 57 | . . 6 . 5 2 . 1 38 . 5 . . Brawler 3 | . . 1 . . . . 1 1 . . . . Duelist 3 | . . 1 . . . . . 2 . . . . Sentry 18 | . . 2 . 4 . . . 8 . 4 . . Specialist 3 | . . . . . . . . 3 . . . . Hunter 6 | . . . . 2 . . 1 3 . . . . Programmer 10 | . . . . . . . . 8 . 2 . . Heavy 2 | . . . . . . . 1 1 . . . . Cetus Guard 1 | . . . . . . . . . . . . 1 Best Kill Streak 7 | . . 7 2 7 2 . 2 7 . 4 . 1 Combat Bots Only 7 | . . 5 . 4 2 . 2 7 . 3 . 1 Max Kills in Single Turn 5 | . . 2 1 1 1 . 1 5 . 1 . 1 Gunslinging 1 | . . 1 . . . . . . . . . . Exploded 3 | . . . . . 1 . 1 3 . . . . Melee 1 | . . . . . . . . 1 . . . 1 Uniques/NPCs Destroyed . | . . . . . . . . . . . . . Combat | -11 -10 -9 -9 -8 -7 -6 -6 -5 -5 -5 -5 -5 -------- Run | Scr Mat Mat Min Mat Fac Fac DSF Fac Was Fac Ext Cet Damage Taken 10670 | . . 227 . 533 121 . 698 6580 384 531 919 677 Core 1156 | . . 29 . 43 . . 64 507 251 23 42 197 Absorbed by Shields . | . . . . . . . . . . . . . Redirected to Shielding 45 | . . 18 . . . . . 3 24 . . . Regen/Repaired (Parts) 2 | . . 2 . . . . . . . . . . Core Remaining (%) 96 | 100 100 . 92 92 100 . 92 . . . . . Volleys Fired 359 | . . 33 7 47 10 . 29 188 . 42 . 3 Largest 2 | . . 2 2 2 2 . 2 2 . 2 . 2 Hottest 113 | . . 60 46 46 53 . 53 81 . 113 . 113 Shots Fired 605 | . . 64 14 94 20 . 53 274 . 80 2 4 Gun 462 | . . 64 14 94 19 . 40 145 . 80 2 4 Cannon 71 | . . . . . . . . 71 . . . . Launcher 72 | . . . . . 1 . 13 58 . . . . Special . | . . . . . . . . . . . . . Kinetic 490 | . . 63 14 94 19 . 40 216 . 39 2 3 Thermal 43 | . . 1 . . . . . . . 41 . 1 Explosive 58 | . . . . . 1 . 13 44 . . . . Electromagnetic 14 | . . . . . . . . 14 . . . . Robot Hit Streak 55 | . . 28 26 23 11 . 26 55 . 26 . 3 Robot Miss Streak 3 | . . 1 1 1 1 . 1 3 . 3 1 1 Penetration Max 1 | . . . . . . . . 1 . 1 . . Secondary Targets 5 | . . 1 . 1 1 . 1 . . 1 . . Max Gunslinging Chain 1 | . . 1 . 1 1 . 1 . . 1 . . Shots Hit Robots 558 | . . 57 9 76 18 . 45 273 . 73 . 7 Core Hits 302 | . . 30 3 32 7 . 17 154 . 54 . 5 Critical Kills 6 | . . . . . . . . 4 . 2 . . Critical Parts Destroyed 9 | . . . . 1 . . . 5 . 2 . 1 Critical Strikes 22 | . . . . 1 . . . 16 . 4 . 1 Destroy 15 | . . . . 1 . . . 9 . 4 . 1 Blast 5 | . . . . . . . . 5 . . . . Sever 2 | . . . . . . . . 2 . . . . Melee Attacks 34 | . . . . . . . . 30 . 1 . 3 Impact . | . . . . . . . . . . . . . Slashing 34 | . . . . . . . . 30 . 1 . 3 Piercing . | . . . . . . . . . . . . . Sneak Attacks 2 | . . . . . . . . 1 . 1 . . Combat Hostiles . | . . . . . . . . . . . . . Follow-up Attacks 1 | . . . . . . . . . . . . 1 Damage Inflicted 17827 | . . 660 156 1115 316 . 780 12718 7 1868 . 207 Guns 7753 | . . 660 156 1113 267 . 412 3268 . 1786 . 91 Cannons 1712 | . . . . . . . . 1712 . . . . Explosions 7006 | . . . . . 49 . 368 6589 . . . . Melee 1265 | . . . . . . . . 1067 . 82 . 116 Ramming 91 | . . . . 2 . . . 82 7 . . . Kinetic 8524 | . . 649 156 1113 267 . 412 4980 . 879 . 68 Thermal 1877 | . . 11 . . . . . 936 . 907 . 23 Explosive 5374 | . . . . . 49 . 368 4957 . . . . Electromagnetic 696 | . . . . . . . . 696 . . . . Impact . | . . . . . . . . . . . . . Slashing 1265 | . . . . . . . . 1067 . 82 . 116 Piercing . | . . . . . . . . . . . . . Highest Corruption 6 | . . . . . . . . 6 6 6 6 6 Average Corruption 4 | . . . . . . . . 4 6 6 6 6 Corruption Purged . | . . . . . . . . . . . . . Corruption Blocked . | . . . . . . . . . . . . . Effects 99 | . . . . . . . . 59 3 28 6 3 Message Errors 24 | . . . . . . . . 15 1 6 2 . Matter Fused 27 | . . . . . . . . 17 1 7 1 1 Heat Flow Errors 12 | . . . . . . . . 4 1 6 1 . Energy Discharges 7 | . . . . . . . . 6 . 1 . . Parts Rejected 2 | . . . . . . . . 2 . . . . Data Loss (minor) 11 | . . . . . . . . 4 . 5 . 2 Data Loss (major) 7 | . . . . . . . . 5 . 2 . . Misfires 3 | . . . . . . . . 1 . . 2 . Alerts 3 | . . . . . . . . 3 . . . . Weapon Failures 3 | . . . . . . . . 2 . 1 . . Overload Shots . | . . . . . . . . . . . . . Overflow Damage 567 | . . . . . . . . 525 . 42 . . Projectiles 43 | . . . . . . . . 43 . . . . Explosions 385 | . . . . . . . . 385 . . . . Melee 139 | . . . . . . . . 97 . 42 . . Knockbacks 15 | . . . . . . . . 15 . . . . Impact . | . . . . . . . . . . . . . Kinetic 15 | . . . . . . . . 15 . . . . Secondary . | . . . . . . . . . . . . . Self-Inflicted Damage 96 | . . . . . . . . 93 3 . . . Shots 6 | . . . . . . . . 6 . . . . Rammed 2 | . . . . . . . . . 2 . . . Targets Rammed 14 | . . . . 1 . . . 11 2 . . . Kicked 12 | . . . . 1 . . . 11 . . . . Crushed . | . . . . . . . . . . . . . Highest Temperature 447 | . . 25 . 49 20 . . 447 105 254 162 . Average Temperature 79 | . . 5 . 18 10 . . 102 73 64 96 . Received Heat Transfer 4411 | . . 135 . 342 135 . 45 3055 . 261 267 171 Effects 7 | . . . . . . . . 7 . . . . Shutdowns 2 | . . . . . . . . 2 . . . . Energy Bleed 2 | . . . . . . . . 2 . . . . Interference 2 | . . . . . . . . 2 . . . . Damage (minor) 1 | . . . . . . . . 1 . . . . Siege Activations . | . . . . . . . . . . . . . Robots Corrupted 2 | . . . . . . . . 2 . . . . Combat Hostiles 2 | . . . . . . . . 2 . . . . Parts Fried 3 | . . . . . . . . 3 . . . . Impact Corruptions . | . . . . . . . . . . . . . Robots Melted 1 | . . . . . . . . . . 1 . . Combat Hostiles 1 | . . . . . . . . . . 1 . . Parts Melted 3 | . . . . . . . . . . 3 . . Heat Transferred 2700 | . . 25 . . . . . 600 . 2025 . 50 Parts Sabotaged . | . . . . . . . . . . . . . Parts Stolen . | . . . . . . . . . . . . . Parts Stripped . | . . . . . . . . . . . . . Power Chain Reactions 3 | . . . . . . . . 3 . . . . Missiles Intercepted . | . . . . . . . . . . . . . Alert | -11 -10 -9 -9 -8 -7 -6 -6 -5 -5 -5 -5 -5 ------- Run | Scr Mat Mat Min Mat Fac Fac DSF Fac Was Fac Ext Cet Peak Influence 600 | . 5 374 38 264 59 3 103 600 90 334 95 43 Initial 90 | . . 1 28 10 37 . . 39 90 . 35 31 Average 160 | . 2 145 31 117 14 . 50 268 38 105 49 31 Maximum Alert Level 2 | . . 1 . 1 . . . 2 . 1 . . Low Security (%) 60 | 100 100 61 100 70 100 100 100 30 100 75 100 100 Level 1 31 | . . 38 . 29 . . . 52 . 24 . . Level 2 7 | . . . . . . . . 17 . . . . Level 3 . | . . . . . . . . . . . . . Level 4 . | . . . . . . . . . . . . . Level 5 . | . . . . . . . . . . . . . High Security . | . . . . . . . . . . . . . Max Security . | . . . . . . . . . . . . . Squads Dispatched 23 | . . 1 . 2 1 . 1 16 . 2 . . Investigation 3 | . . . . . 1 . . 1 . 1 . . Extermination 4 | . . . . . . . . 3 . 1 . . Reinforcement 11 | . . 1 . 2 . . 1 7 . . . . Assault 2 | . . . . . . . . 2 . . . . Garrison 3 | . . . . . . . . 3 . . . . Intercept . | . . . . . . . . . . . . . Searches Triggered . | . . . . . . . . . . . . . Construction Impeded 2 | . . . . . . . . 2 . . . . Haulers Reinforced 1 | . . . . . . . . 1 . . . . Active Scanning Responses . | . . . . . . . . . . . . . Cargo Convoy Interrupts 1 | . . . . . . . . 1 . . . . Stealth | -11 -10 -9 -9 -8 -7 -6 -6 -5 -5 -5 -5 -5 --------- Run | Scr Mat Mat Min Mat Fac Fac DSF Fac Was Fac Ext Cet Distress Signals 6 | . . 1 . . . . . 2 . 2 . 1 Communications Jammed . | . . . . . . . . . . . . . Distress Signals . | . . . . . . . . . . . . . Times Spotted 167 | . . 16 . 18 4 . 4 91 6 17 6 5 Peak Tracking Total 9 | . . 7 . 5 2 . 2 9 6 5 4 5 Tactical Retreats 13 | . . . . 2 . . . 8 . 1 2 . Traps | -11 -10 -9 -9 -8 -7 -6 -6 -5 -5 -5 -5 -5 ------- Run | Scr Mat Mat Min Mat Fac Fac DSF Fac Was Fac Ext Cet Traps Triggered 13 | . . . . 1 . . 2 9 . 1 . . Indirectly 4 | . . . . . . . . 4 . . . . Trap Hack Attempts . | . . . . . . . . . . . . . Triggered . | . . . . . . . . . . . . . Disarmed . | . . . . . . . . . . . . . Reprogrammed . | . . . . . . . . . . . . . Reused . | . . . . . . . . . . . . . Traps Extracted . | . . . . . . . . . . . . . Installed . | . . . . . . . . . . . . . Triggered 1 | . . . . . . . . 1 . . . . Machines | -11 -10 -9 -9 -8 -7 -6 -6 -5 -5 -5 -5 -5 ---------- Run | Scr Mat Mat Min Mat Fac Fac DSF Fac Was Fac Ext Cet Machines Disabled 29 | . . . . . 1 . . 27 . . 1 . Max in Single Turn 7 | . . . . . 1 . . 7 . . 1 . Garrison Access 2 | . . . . . . . . 1 . 1 . . Machines Sabotaged . | . . . . . . . . . . . . . Garrisons Compromised 1 | . . . . . . . . 1 . . . . Overloaded Fab Kills . | . . . . . . . . . . . . . Hacking | -11 -10 -9 -9 -8 -7 -6 -6 -5 -5 -5 -5 -5 --------- Run | Scr Mat Mat Min Mat Fac Fac DSF Fac Was Fac Ext Cet Machines Accessed 20 | . 3 2 . 3 2 1 . 6 . 3 . . Terminals 14 | . 3 . . 3 1 1 . 4 . 2 . . Fabricators 2 | . . . . . 1 . . 1 . . . . Repair Stations 1 | . . 1 . . . . . . . . . . Recycling Units . | . . . . . . . . . . . . . Scanalyzers 1 | . . 1 . . . . . . . . . . Garrison Access 2 | . . . . . . . . 1 . 1 . . Total Hacks 46 | . 6 8 . 8 4 2 . 11 . 7 . . Successful 23 | . 4 7 . 5 2 1 . 2 . 2 . . Failed 23 | . 2 1 . 3 2 1 . 9 . 5 . . Catastrophic 4 | . . . . 1 . . . 3 . . . . Database Lockouts . | . . . . . . . . . . . . . Manual 18 | . . . . 2 2 . . 6 . 8 . . Terminals 30 | . 6 . . 8 2 2 . 6 . 6 . . Fabricators 3 | . . . . . 2 . . 1 . . . . Repair Stations 4 | . . 4 . . . . . . . . . . Recycling Units . | . . . . . . . . . . . . . Scanalyzers 4 | . . 4 . . . . . . . . . . Garrison Access 5 | . . . . . . . . 4 . 1 . . Terminal Hacks 14 | . 4 . . 5 2 1 . 1 . 1 . . Prototype ID Bank 2 | . 1 . . 1 . . . . . . . . Open DSF 2 | . . . . . . 1 . 1 . . . . Scanalyzer Index 1 | . 1 . . . . . . . . . . . Unreport Threat 4 | . . . . 1 2 . . . . 1 . . Locate Traps 1 | . 1 . . . . . . . . . . . Dispatch Records 1 | . . . . 1 . . . . . . . . Hauler Manifests 2 | . 1 . . 1 . . . . . . . . Registered Prototypes 1 | . . . . 1 . . . . . . . . Fabricator Hacks 1 | . . . . . . . . 1 . . . . Build 1 | . . . . . . . . 1 . . . . Repair Station Hacks 3 | . . 3 . . . . . . . . . . Scan Component 2 | . . 2 . . . . . . . . . . Repair 1 | . . 1 . . . . . . . . . . Recycling Unit Hacks . | . . . . . . . . . . . . . Scanalyzer 4 | . . 4 . . . . . . . . . . Insert Component 2 | . . 2 . . . . . . . . . . Analyze 2 | . . 2 . . . . . . . . . . Garrison Access Hacks 1 | . . . . . . . . . . 1 . . Seal Access 1 | . . . . . . . . . . 1 . . Unauthorized Hacks . | . . . . . . . . . . . . . Terminals . | . . . . . . . . . . . . . Fabricators . | . . . . . . . . . . . . . Repair Stations . | . . . . . . . . . . . . . Recycling Units . | . . . . . . . . . . . . . Scanalyzers . | . . . . . . . . . . . . . Garrison Access . | . . . . . . . . . . . . . Data Cores Recovered . | . . . . . . . . . . . . . Used . | . . . . . . . . . . . . . Hacking Detections 17 | . 3 2 . 3 2 1 . 4 . 2 . . Full Trace Events 2 | . . . . . 1 . . 1 . . . . Feedback Events . | . . . . . . . . . . . . . Feedback Blocked . | . . . . . . . . . . . . . Robot Schematics Acquired . | . . . . . . . . . . . . . Robots Built . | . . . . . . . . . . . . . Authchips . | . . . . . . . . . . . . . Time . | . . . . . . . . . . . . . Total Robot Build Rating . | . . . . . . . . . . . . . Part Schematics Acquired 2 | . . 2 . . . . . . . . . . Parts Built 1 | . . . . . . . . 1 . . . . Authchips . | . . . . . . . . . . . . . Time 139 | . . . . . . . . 139 . . . . Total Part Build Rating 9 | . . . . . . . . 9 . . . . Parts Repaired 1 | . . 1 . . . . . . . . . . Time 13 | . . 13 . . . . . . . . . . Parts Recycled . | . . . . . . . . . . . . . Recycled Matter . | . . . . . . . . . . . . . Retrieved Matter . | . . . . . . . . . . . . . Retrieved Components . | . . . . . . . . . . . . . Parts Scanalyzed 2 | . . 2 . . . . . . . . . . Part Schematics Acquired 2 | . . 2 . . . . . . . . . . Parts Damaged . | . . . . . . . . . . . . . Bothacking | -11 -10 -9 -9 -8 -7 -6 -6 -5 -5 -5 -5 -5 ------------ Run | Scr Mat Mat Min Mat Fac Fac DSF Fac Was Fac Ext Cet Used RIF Installer . | . . . . . . . . . . . . . Robots Hacked . | . . . . . . . . . . . . . Non-combat . | . . . . . . . . . . . . . Combat . | . . . . . . . . . . . . . Robot Hacks Applied . | . . . . . . . . . . . . . Relay Couplers Released 3 | . . . . . . . . 3 . . . . Machine Destruction 3 | . . . . . . . . 3 . . . . Fabnet Peak Effective % . | . . . . . . . . . . . . . Robots Rewired . | . . . . . . . . . . . . . Allies Hacked . | . . . . . . . . . . . . . Hacks Repelled . | . . . . . . . . . . . . . Allies | -11 -10 -9 -9 -8 -7 -6 -6 -5 -5 -5 -5 -5 -------- Run | Scr Mat Mat Min Mat Fac Fac DSF Fac Was Fac Ext Cet Total Allies . | . . . . . . . . . . . . . Largest Group . | . . . . . . . . . . . . . Highest-Rated Group . | . . . . . . . . . . . . . Highest-Rated Ally . | . . . . . . . . . . . . . Total Orders . | . . . . . . . . . . . . . Ally Attacks . | . . . . . . . . . . . . . Total Damage . | . . . . . . . . . . . . . Kills . | . . . . . . . . . . . . . Allies Corrupted . | . . . . . . . . . . . . . Allies Melted . | . . . . . . . . . . . . . Intel | -11 -10 -9 -9 -8 -7 -6 -6 -5 -5 -5 -5 -5 ------- Run | Scr Mat Mat Min Mat Fac Fac DSF Fac Was Fac Ext Cet Robot Analysis Total . | . . . . . . . . . . . . . Derelict Logs Recovered . | . . . . . . . . . . . . . Drone Launches . | . . . . . . . . . . . . . Drone Recoveries . | . . . . . . . . . . . . . Exploration | -11 -10 -9 -9 -8 -7 -6 -6 -5 -5 -5 -5 -5 ------------- Run | Scr Mat Mat Min Mat Fac Fac DSF Fac Was Fac Ext Cet Turns Passed 6756 | 134 211 423 227 507 460 12 290 2955 113 1142 230 52 Spaces Moved 3372 | 72 110 171 170 237 216 5 130 1342 137 561 191 30 Core 130 | 18 . . . . . . . . 97 15 . . Treads . | . . . . . . . . . . . . . Legs 3242 | 54 110 171 170 237 216 5 130 1342 40 546 191 30 Wheels . | . . . . . . . . . . . . . Hover . | . . . . . . . . . . . . . Flight . | . . . . . . . . . . . . . Fastest Speed 50 | 50 190 120 120 120 190 189 117 117 50 50 120 120 Average Speed 155 | 161 190 159 120 120 190 189 130 167 77 167 120 120 Slowest Speed 540 | 200 190 190 120 120 191 189 189 330 540 190 120 120 Overloaded Moves . | . . . . . . . . . . . . . Propulsion Burnouts . | . . . . . . . . . . . . . Robots Hopped . | . . . . . . . . . . . . . Cave-ins Triggered . | . . . . . . . . . . . . . Exploration Rate (%) 34 | 4 23 22 51 25 4 . 91 48 75 17 40 19 Regions Visited 12 Branch Regions 3 Pre-discovered Areas . | . . . . . . . . . . . . . Known Exits Taken 9 | 1 1 1 1 1 1 1 . . . 1 1 . Unknown Exits Taken . | . . . . . . . . . . . . . Scrap Searched 1 | . . . 1 . . . . . . . . . Spaces Dug 1 | . . . . . . . . 1 . . . . Terrain Destroyed 411 | . . . . . 9 . 18 384 . . . . Melee 1 | . . . . . . . . 1 . . . . Projectile 7 | . . . . . . . . 7 . . . . AOE 403 | . . . . . 9 . 18 376 . . . . Terrain Rammed . | . . . . . . . . . . . . . Walls Destroyed . | . . . . . . . . . . . . . Machines Disabled . | . . . . . . . . . . . . . Actions | -11 -10 -9 -9 -8 -7 -6 -6 -5 -5 -5 -5 -5 --------- Run | Scr Mat Mat Min Mat Fac Fac DSF Fac Was Fac Ext Cet Total 4235 | 88 112 266 179 368 245 8 198 1727 142 673 191 38 Wait 183 | . . 36 . 55 2 . 14 41 . 35 . . Move 3361 | 71 109 170 169 236 215 4 129 1342 136 560 190 30 Hop . | . . . . . . . . . . . . . Pick Up 121 | 10 2 12 1 10 9 . 12 51 1 13 . . Fast Attach 16 | 4 . 2 . 1 . . . 1 2 5 1 . Attach 90 | 3 1 4 1 7 6 3 2 49 . 12 . 2 Detach 6 | . . . . . 1 . . 4 . 1 . . Swap 7 | . . . . 2 . . 2 2 . . . 1 Drop 35 | . . 9 1 9 2 1 . 8 1 4 . . Fire 359 | . . 33 7 47 10 . 29 188 . 42 . 3 Melee 33 | . . . . . . . . 30 . 1 . 2 Ram 2 | . . . . . . . . . 2 . . . Kick 12 | . . . . 1 . . . 11 . . . . Crush . | . . . . . . . . . . . . . Escape Stasis 10 | . . . . . . . 10 . . . . . Rewire . | . . . . . . . . . . . . . Trap . | . . . . . . . . . . . . . Miscellaneous . | . . . . . . . . . . . . . Route ------- -11/Scrapyard -10/Materials -9/Materials -9/Mines -8/Materials -7/Factory -6/Factory -6/DSF -5/Factory -5/Waste -5/Factory -5/Extension (discovered 2 exits: *Fac / *Cet) -5/Cetus History --------- Turn | Location | Event 4 | -11/Scrapyard | Identified exit to Materials 4 | -11/Scrapyard | Discovered exit to Materials (range 15) 135 | -11/Scrapyard | Entered Materials 135 | -10/Materials | Evolved 1 slot: Utility x1 248 | -10/Materials | Identified exit to Materials 248 | -10/Materials | Discovered exit to Materials (range 9) 313 | -10/Materials | Build established: Hacker-Mutant 346 | -10/Materials | Entered another Materials area 346 | -9/Materials | Evolved 2 slots: Propulsion x2 536 | -9/Materials | Repaired Lgt. Assault Rifle 650 | -9/Materials | Identified exit to Mines 650 | -9/Materials | Discovered exit to Mines (range 13) 769 | -9/Materials | Entered Mines 801 | -9/Mines | A weapon hastily lodged in a ceiling crevice suddenly fell to the ground 992 | -9/Mines | Identified exit to Materials 992 | -9/Mines | Discovered exit to Materials (range 3) 996 | -9/Mines | Entered Materials 996 | -8/Materials | Evolved 2 slots: Propulsion x1, Utility x1 1450 | -8/Materials | Identified exit to Factory 1450 | -8/Materials | Discovered exit to Factory (range 10) 1476 | -8/Materials | Build established: Scavenger-Mutant 1503 | -8/Materials | Entered Factory 1503 | -7/Factory | Evolved 2 slots: Propulsion x1, Utility x1 1563 | -7/Factory | Identified exit to Factory 1563 | -7/Factory | Discovered exit to Factory (range 4) 1963 | -7/Factory | Entered another Factory area 1963 | -6/Factory | Evolved 2 slots: Propulsion x2 1973 | -6/Factory | Identified exit to DSF 1975 | -6/Factory | Entered DSF 2043 | -6/DSF | Additional patrols routed to DSF 2184 | -6/DSF | Found Hvy. Reactive Plating 2186 | -6/DSF | Found Hvy. Reactive Plating 2189 | -6/DSF | Found Hvy. Reactive Plating 2244 | -6/DSF | Identified exit to Factory 2244 | -6/DSF | Discovered exit to Factory (range 14) 2265 | -6/DSF | Entered Factory 2265 | -5/Factory | Evolved 2 slots: Power x1, Weapon x1 3052 | -5/Factory | Fabricated Centrium Leg? 3087 | -5/Factory | Lost 7 parts (1p4n2u) 3091 | -5/Factory | Build established: Hacker-Mutant 3119 | -5/Factory | Destroyed 7 combat bots 3243 | -5/Factory | Cargo convoy interrupted 3555 | -5/Factory | Build established: Scavenger-Mutant 3597 | -5/Factory | Garrison activated, responded to threat 3686 | -5/Factory | Lost 6 parts (1p3n1u1w) 3763 | -5/Factory | Lost 6 parts (3n2u1w) 4576 | -5/Factory | Spotted B-75 Beast 4965 | -5/Factory | First assault squad dispatched 4975 | -5/Factory | Lost 3 parts (3n) 5131 | -5/Factory | Core integrity fell below 50% 5220 | -5/Factory | Sucked down chute 5220 | -5/Factory | Entered Waste 5232 | -5/Waste | Spotted C-40 Crusher 5247 | -5/Waste | Spotted C-40 Crusher 5252 | -5/Waste | Spotted C-40 Crusher 5257 | -5/Waste | Crushed by Compactor (1 part destroyed, 1 dropped) 5259 | -5/Waste | Spotted C-40 Crusher 5260 | -5/Waste | Crushed by Compactor (1 part destroyed, 1 dropped) 5262 | -5/Waste | Spotted C-40 Crusher 5264 | -5/Waste | Crushed by Compactor (1 part destroyed, 1 dropped) 5264 | -5/Waste | Spotted C-40 Crusher 5270 | -5/Waste | Crushed by Compactor (1 part destroyed, 2 dropped) 5271 | -5/Waste | Crushed by Compactor (1 part destroyed, 1 dropped) 5274 | -5/Waste | Crushed by Compactor (1 part destroyed, 2 dropped) 5274 | -5/Waste | Crushed by Compactor (1 part destroyed, 1 dropped) 5277 | -5/Waste | Crushed by Compactor (1 part destroyed) 5308 | -5/Waste | Lost 9 parts (1p4n3u1w) 5325 | -5/Waste | Identified exit to Factory 5325 | -5/Waste | Discovered exit to Factory (range 11) 5333 | -5/Waste | Entered Factory 5595 | -5/Factory | Build established: Hacker-Mutant 5971 | -5/Factory | Build established: Scavenger-Mutant 6443 | -5/Factory | Spotted B-75 Beast 6457 | -5/Factory | Identified exit to Extension 6457 | -5/Factory | Discovered exit to Extension (range 15) 6475 | -5/Factory | Entered Extension 6564 | -5/Extension | Spotted B-75 Beast 6574 | -5/Extension | Spotted B-75 Beast 6598 | -5/Extension | Core integrity fell below 20% 6685 | -5/Extension | Identified exit to Factory 6685 | -5/Extension | Discovered exit to Factory (range 16) 6685 | -5/Extension | Identified exit to Cetus 6685 | -5/Extension | Discovered exit to Cetus (range 16) 6705 | -5/Extension | Entered Cetus 6723 | -5/Cetus | Spotted Cetus Guard 6723 | -5/Cetus | Spotted Cetus Guard 6726 | -5/Cetus | Spotted Cetus Guard 6729 | -5/Cetus | Spotted Cetus Guard 6733 | -5/Cetus | Lost 3 parts (1p2n) 6746 | -5/Cetus | Destroyed Cetus Guard 6757 | -5/Cetus | Destroyed by Cetus Guard with Advanced Variable Charge Gun Last Messages --------------- Slug penetrates Wall. Penetrated by Slug. Slug penetrates Wall. Penetrated by Slug. Cetus Guard suffers critical hit (Destroy). Destroyed Prototype Treads. Penetrated by Slug. Slug penetrates Cetus Guard. Penetrated by Slug. KE Penetrator destroyed. Penetrated by Slug. Chainsword follow-up attack on Cetus Guard. Cetus Guard destroyed. System corrupted: Component data lost. Slug penetrates Wall. Penetrated by Slug. Carbon-fiber Leg destroyed. Penetrated by Slug. Acquired 61 matter. Penetrated by Slug. Map ----- +----------------------------------------------------+ | ?????????????????????????????????????????????????? | | ?????????????????????????????????????????????????? | | ?????????????????????????????????????????????????? | | ?????????????????????????????????????????????????? | | ?????????????????????????????????????????????????? | | ?????????????????????????????????????????????????? | | ?????????????????????????????????????????????????? | | ?????????????????????????????????????????????????? | | ??????????????? ???????????????????????????????? | | ??????????????? ???????????????????????????????? | | ??????????????# #??????????????????????????????? | | ??????????????# #??????????????????????????????? | | ??????????????# #??????????????????????????????? | | ??????????????# #??????????????????????????????? | | ??????????????# #??????????????????????????????? | | ??????????????# #??????????????????????????????? | | ??????????????# #??????????????????????????????? | | ?????????????## #??????????????????????????????? | | ??????????????" #??????????????????????????????? | | ????????????### #??????????????????????????????? | | ????????????# # #??????????????????????????????? | | ????????????? " #??????????????????????????????? | | ??????????????# #??????????????????????????????? | | ?????????????## ##?#######?????????????????????? | | ##############; !###;; ### ????????? | | ! Y @ ; ????????? | | [Y w + ????????? | | Y +???????????????????? | | ####"###########;#####;# ###???????????????????? | | ??????????????# #????#######?????????????????????? | | ?????????????# #?????????????????????????????????? | | ?????????????##??????????????????????????????????? | | ?????????????????????????????????????????????????? | | ?????????????????????????????????????????????????? | | ?????????????????????????????????????????????????? | | ?????????????????????????????????????????????????? | | ?????????????????????????????????????????????????? | | ?????????????????????????????????????????????????? | | ?????????????????????????????????????????????????? | | ?????????????????????????????????????????????????? | | ?????????????????????????????????????????????????? | | ?????????????????????????????????????????????????? | | ?????????????????????????????????????????????????? | | ?????????????????????????????????????????????????? | | ?????????????????????????????????????????????????? | | ?????????????????????????????????????????????????? | | ?????????????????????????????????????????????????? | | ?????????????????????????????????????????????????? | | ?????????????????????????????????????????????????? | | ?????????????????????????????????????????????????? | +----------------------------------------------------+ Best States ------------- Heat Dissipation 59 Energy Generation 32 Energy Capacity 1015 Matter Stores 396 Matter Capacity 400 Sight Range 18 Terrain Scan Range 14 Terrain Scan Density 110 Armor Coverage 1200 Resistance: KI 75 Resistance: TH 35 Resistance: EX 35 Resistance: EM 35 Resistance: I 35 Resistance: S 35 Resistance: P 35 Core Shielding 30 Propulsion Shielding 33 Evasion (%) 55 Targeting Accuracy 5 Melee Accuracy 6 Target Analysis 6 Offensive Hacking 34 Authchip Count 4 Item Schematics ----------------- Lgt. Assault Rifle | -9/Materials | Scanalyzed Lgt. Ion Engine | -9/Materials | Scanalyzed Robot Schematics ------------------ None Fabricated ------------ Centrium Leg | x1 | -5/Factory | Preloaded Alien Tech Used ----------------- None Achievements -------------- None Challenges ------------ None Game ------ Seed LatentHeartLaser Manual? 0 Play Time 01:30:36 Cumulative 96.8 hours Start 2022.08.13 @ 20:17:32 End 2022.08.13 @ 21:49:24 Sessions 1 Manual Loads 0 Difficulty Explorer Special Mode None Game No. 63 Rogue 23 Adventurer 9 Explorer 31 Win Type - Total 5 Types 4/0/0/1/0/0/0/0/0 Lore% 48 Gallery% 56 Achievement% 47 Wizard Run 0 Options --------- ASCII 0 Keyboard 0 Movement Mouse Keybinds 0 Fullscreen 1 Font 12/Smallcaps Map View 83x54 Tactical HUD 0 Map Filters NONE Filters NONE Steam 1 RUN: 8caf155c-3a0e-4970-b3a2-937286df566e